Cogmind - Beta 16 @@@ ROGUE MODE // 2025.10.27 @ 02:34:46 Player: AshCrow Result: Self-destructed Performance ------------- Evolutions (2) 1000 Regions Visited (4) 800 Robots Destroyed (47) 235 Value Destroyed (1334) 1334 Prototype IDs (0) 0 Alien Tech Used (0) 0 Bonus (0) 0 TOTAL SCORE: 3369 Bonus ------- None Cogmind --------- Core Integrity 210/550 Matter 245/300 Energy 100/100 System Corruption 0% Temperature Cool (0) Movement Core (100) Ox1 Location -8/Storage Parts ------- > --- POWER (1) -------- (None) > --- PROPULSION (4) --- (None) > --- UTILITY (3) ------ Small Storage Unit > --- WEAPON (3) ------- (None) > --- INVENTORY (8) ---- Light Ion Engine Aluminum Leg Aluminum Leg Small Storage Unit Hardlight Generator Drone Bay (2/2) Peak State ------------ > --- POWER ------------ Improved Ion Engine > --- PROPULSION ------- Light Treads Light Treads Light Treads Light Treads > --- UTILITY ---------- Small Storage Unit Recoil Stabilizer Recoil Stabilizer > --- WEAPON ----------- Heavy Assault Rifle Minigun Minigun > --- INVENTORY -------- Light Ion Engine Aluminum Leg Aluminum Leg Small Storage Unit Light Armor Plating Hardlight Generator Rocket Launcher Mini Grenade Launcher [Rating: 22] Favorites ----------- Power Light Ion Engine Engine Light Ion Engine Propulsion Light Treads Treads Light Treads Utility Small Storage Unit Device Recoil Stabilizer Storage Small Storage Unit Protection Light Armor Plating Weapon Minigun Energy Gun Medium Laser Ballistic Gun Minigun Launcher Mini Grenade Launcher Build | -11 -10 -9 -8 -8 ------- Run | Yrd Mat Mat Mat Sto Slots Evolved 4 | . . 2 2 . Power . | . . . . . Propulsion 2 | . . 2 . . Utility 1 | . . . 1 . Weapon 1 | . . . 1 . Parts Attached 33 | 7 2 12 2 10 Power 4 | 1 . 2 . 1 Engine 4 | 1 . 2 . 1 Core . | . . . . . Reactor . | . . . . . Propulsion 11 | 2 . 5 . 4 Treads 11 | 2 . 5 . 4 Leg . | . . . . . Wheel . | . . . . . Hover . | . . . . . Flight . | . . . . . Utility 7 | 2 . 1 1 3 Device 5 | 1 . 1 1 2 Storage 1 | 1 . . . . Processor . | . . . . . Hackware . | . . . . . Protection 1 | . . . . 1 Artifact . | . . . . . Weapon 11 | 2 2 4 1 2 Energy Gun 3 | 2 1 . . . Energy Cannon . | . . . . . Ballistic Gun 6 | . 1 3 1 1 Ballistic Cannon . | . . . . . Launcher 2 | . . 1 . 1 Special Weapon . | . . . . . Impact Weapon . | . . . . . Slashing Weapon . | . . . . . Piercing Weapon . | . . . . . Special Melee Weapon . | . . . . . Unidentified Prototypes . | . . . . . Parts Lost 19 | . . 3 . 16 Power 2 | . . 1 . 1 Propulsion 9 | . . 2 . 7 Utility 3 | . . . . 3 Weapon 5 | . . . . 5 Highest Loss Streak 7 | . . 1 . 7 To Critical Strikes . | . . . . . Average Backups 6 | 2 5 7 8 7 Power . | . 1 1 1 1 Propulsion 1 | 1 2 2 2 2 Utility 2 | . 1 1 2 3 Weapon 1 | . 1 2 2 1 Tool/Special . | . . . . . Unused Backups 6 | . . 2 . 4 Power . | . . . . . Propulsion 2 | . . . . 2 Utility 3 | . . 1 . 2 Weapon 1 | . . 1 . . Tool/Special . | . . . . . Average Slot Usage (%) 81 | . 100 81 88 72 Engine 10 | . 14 11 9 7 Treads 24 | . 28 26 36 20 Device 12 | . 14 11 12 13 Storage 10 | . 14 11 9 9 Energy Gun 6 | . 19 8 . . Ballistic Gun 13 | . 8 13 21 15 Launcher 2 | . . . . 5 Peak Build Rating 22 | 7 7 17 22 22 Average Rating 12 | 5 7 9 19 16 On Entrance 10 | . 7 7 17 22 Avg Prop Armor Cover (%) . | . . . . . Naked Turns . | . . . . . Heaviest Build 26 | 11 12 19 23 26 Greatest Support 80 | 40 40 80 80 80 Greatest Overweight (x) 2 | . . . . 2 Average Overweight (x) . | . . . . . Largest Inventory Capacity 8 | 8 8 8 8 8 Average Capacity 7 | 7 8 8 8 8 Most Carried 8 | 5 6 8 8 8 Average Carried 6 | 2 5 7 7 7 Final Capacity 8 | 8 8 8 8 8 Final Carried 8 | 5 6 8 8 6 Class Distribution -------------------- 63% | Mutant 15% | Scavenger-Gunner 14% | Scavenger-Mutant 4% | Scavenger-Tank Dominant Class ---------------- Mutant | -10/Materials Mutant | -9/Materials Scavenger-Mutant | -8/Materials Scavenger-Gunner | -8/Storage Resources | -11 -10 -9 -8 -8 ----------- Run | Yrd Mat Mat Mat Sto Matter Collected 1261 | 270 21 222 . 748 Remotely . | . . . . . Salvage Created 1879 | 104 67 346 . 1362 Parts 92 | 6 6 29 . 51 Haulers Intercepted . | . . . . . Recyclers Shooed 5 | 1 . 1 . 3 Parts Field Recycled . | . . . . . Retrieved Matter . | . . . . . Parts Self-Destructed . | . . . . . Prevented . | . . . . . Parts Restored . | . . . . . Kills | -11 -10 -9 -8 -8 ------- Run | Yrd Mat Mat Mat Sto Combat Hostiles Destroyed 29 | . 1 11 . 17 Guns 19 | . 1 5 . 13 AOE 10 | . . 6 . 4 Classes Destroyed 11 | 2 3 2 . 4 Worker 1 | . . . . 1 Builder 3 | . . . . 3 Tunneler 1 | 1 . . . . Recycler 10 | 1 . . . 9 Mechanic 1 | . . . . 1 Operator 1 | . 1 . . . Watcher 1 | . 1 . . . Swarmer 4 | . . 4 . . Grunt 13 | . 1 2 . 10 Brawler 1 | . . . . 1 Sentry 11 | . . 5 . 6 Best Kill Streak 6 | 2 1 4 . 6 Combat Bots Only 4 | . 1 4 . 3 Max Kills in Single Turn 4 | 1 1 2 . 4 Gunslinging 1 | . . . . 1 Exploded 2 | . . 2 . 2 Melee . | . . . . . Uniques/NPCs Destroyed . | . . . . . Combat | -11 -10 -9 -8 -8 -------- Run | Yrd Mat Mat Mat Sto Hostile Shots Fired 216 | . 6 47 . 163 Missed 59 | . 3 12 . 44 Hits 157 | . 3 35 . 119 Projectile 157 | . 3 35 . 119 Critical Strikes 5 | . . 2 . 3 Damage Taken 2702 | . 35 691 . 1976 Core 478 | . 12 126 . 340 Absorbed by Shields . | . . . . . Regen/Repaired (Parts) 77 | . . . . 77 Core Remaining (%) 87 | 100 95 68 . . Volleys Fired 109 | 5 8 23 . 73 Largest 3 | 2 2 2 . 3 Hottest 81 | 80 70 80 . 81 Shots Fired 209 | 10 16 46 . 137 Gun 189 | 10 16 42 . 121 Cannon . | . . . . . Launcher 20 | . . 4 . 16 Special . | . . . . . Kinetic 161 | . 8 32 . 121 Thermal 28 | 10 8 10 . . Explosive 20 | . . 4 . 16 Electromagnetic . | . . . . . Robot Hit Streak 15 | 6 10 7 . 15 Robot Miss Streak 3 | 1 3 1 . 3 Penetration Max . | . . . . . Secondary Targets 2 | . . . . 2 Max Gunslinging Chain 1 | . . . . 1 Shots Hit Robots 157 | 8 11 36 . 102 Core Hits 85 | 3 6 18 . 58 Critical Kills . | . . . . . Critical Parts Destroyed . | . . . . . Critical Strikes 2 | . 1 1 . . Burn 2 | . 1 1 . . Melee Attacks . | . . . . . Impact . | . . . . . Slashing . | . . . . . Piercing . | . . . . . Sneak Attacks . | . . . . . Combat Hostiles . | . . . . . Follow-up Attacks . | . . . . . Damage Inflicted 3840 | 86 127 829 . 2798 Guns 2248 | 86 117 472 . 1573 Cannons . | . . . . . Explosions 1582 | . . 357 . 1225 Melee . | . . . . . Ramming 10 | . 10 . . . Kinetic 1975 | . 55 347 . 1573 Thermal 336 | 86 62 188 . . Explosive 1519 | . . 294 . 1225 Electromagnetic . | . . . . . Impact . | . . . . . Slashing . | . . . . . Piercing . | . . . . . Highest Corruption . | . . . . . Average Corruption . | . . . . . Corruption Purged . | . . . . . Corruption Blocked . | . . . . . Overload Shots . | . . . . . Overflow Damage 64 | . . 10 . 54 Projectiles . | . . . . . Explosions 64 | . . 10 . 54 Melee . | . . . . . Knockbacks . | . . . . . Impact . | . . . . . Kinetic . | . . . . . Secondary . | . . . . . Self-Inflicted Damage 359 | . . 181 . 178 Shots 11 | . . 5 . 6 Rammed 4 | . 4 . . . Targets Rammed 4 | . 4 . . . Kicked . | . . . . . Crushed . | . . . . . Highest Temperature 137 | 72 108 137 . 67 Average Temperature 30 | 33 47 35 . 23 Received Heat Transfer 1098 | . 18 207 . 873 Siege Activations . | . . . . . Martial Activations . | . . . . . Shielding Activations . | . . . . . Robots Disrupted . | . . . . . Combat Hostiles . | . . . . . Robots Corrupted . | . . . . . Combat Hostiles . | . . . . . Parts Fried . | . . . . . Impact Corruptions . | . . . . . Robots Melted . | . . . . . Combat Hostiles . | . . . . . Parts Melted 2 | . 1 1 . . Heat Transferred 953 | 200 259 494 . . Parts Sabotaged . | . . . . . Parts Stolen . | . . . . . Parts Stripped . | . . . . . Power Chain Reactions . | . . . . . Alert | -11 -10 -9 -8 -8 ------- Run | Yrd Mat Mat Mat Sto Maximum Alert Level 1 | . . 1 . 1 Low Security (%) 80 | 100 100 74 100 73 Level 1 19 | . . 25 . 26 Level 2 . | . . . . . Level 3 . | . . . . . Level 4 . | . . . . . Level 5 . | . . . . . High Security . | . . . . . Max Security . | . . . . . Peak Influence 241 | 10 20 230 89 241 Initial 89 | . . . 89 28 Average 98 | . 2 78 83 167 Influence Increases 1102 | 10 55 376 . 661 Destroy 0b10 Robot/C 580 | . 20 220 . 340 Destroy 0b10 Robot/NC 90 | 10 10 . . 70 Destroy Leader 162 | . 2 70 . 90 Successful Hack 25 | . 8 . . 17 Disable Machine 75 | . . 45 . 30 Destroy Structure 155 | . . 41 . 114 Partial Spotted 15 | . 15 . . . Influence Decreases 953 | 10 55 164 143 581 Entered New Map 164 | . . . 123 41 Time Decay 599 | 10 55 134 20 380 Lost Part 190 | . . 30 . 160 Squads Dispatched 5 | . 1 . . 4 Investigation . | . . . . . Extermination . | . . . . . Reinforcement 5 | . 1 . . 4 Assault . | . . . . . Garrison . | . . . . . Intercept . | . . . . . Searches Triggered . | . . . . . Construction Impeded 1 | . . . . 1 Haulers Reinforced . | . . . . . Active Scanning Responses . | . . . . . Cargo Convoy Interrupts . | . . . . . Stealth | -11 -10 -9 -8 -8 --------- Run | Yrd Mat Mat Mat Sto Distress Signals 2 | . 1 1 . . Communications Jammed . | . . . . . Distress Signals . | . . . . . Times Spotted 50 | . 5 18 . 27 Peak Tracking Total 8 | . 3 4 . 8 Tactical Retreats . | . . . . . Traps | -11 -10 -9 -8 -8 ------- Run | Yrd Mat Mat Mat Sto Traps Triggered 2 | . . . . 2 Indirectly . | . . . . . Trap Hack Attempts . | . . . . . Triggered . | . . . . . Disarmed . | . . . . . Reprogrammed . | . . . . . Reused . | . . . . . Traps Extracted . | . . . . . Installed . | . . . . . Triggered . | . . . . . Machines | -11 -10 -9 -8 -8 ---------- Run | Yrd Mat Mat Mat Sto Machines Disabled 5 | . . 3 . 2 Max in Single Turn 2 | . . 2 . 1 Machines Repaired . | . . . . . Machines Dismantled . | . . . . . Machines Sabotaged . | . . . . . Overloaded Fab Kills . | . . . . . Hacking | -11 -10 -9 -8 -8 --------- Run | Yrd Mat Mat Mat Sto Machines Accessed 7 | . 1 2 . 4 Terminals 5 | . 1 1 . 3 Fabricators . | . . . . . Repair Stations 1 | . . . . 1 Recycling Units 1 | . . 1 . . Scanalyzers . | . . . . . Garrison Access . | . . . . . Total Hacks 8 | . 1 2 . 5 Successful 8 | . 1 2 . 5 Failed . | . . . . . Catastrophic . | . . . . . Database Lockouts . | . . . . . Manual . | . . . . . Terminals 5 | . 1 1 . 3 Fabricators . | . . . . . Repair Stations 2 | . . . . 2 Recycling Units 1 | . . 1 . . Scanalyzers . | . . . . . Garrison Access . | . . . . . Terminal Hacks 5 | . 1 1 . 3 Open Door 3 | . . . . 3 Emergency Access Points 1 | . . 1 . . Recall Reinforcements 1 | . 1 . . . Fabricator Hacks . | . . . . . Repair Station Hacks 2 | . . . . 2 Scan Component 1 | . . . . 1 Repair 1 | . . . . 1 Recycling Unit Hacks 1 | . . 1 . . Recycle Component 1 | . . 1 . . Scanalyzer . | . . . . . Garrison Access Hacks . | . . . . . Unauthorized Hacks . | . . . . . Terminals . | . . . . . Fabricators . | . . . . . Repair Stations . | . . . . . Recycling Units . | . . . . . Scanalyzers . | . . . . . Garrison Access . | . . . . . Data Cores Recovered . | . . . . . Used . | . . . . . Hacking Detections 2 | . 1 . . 1 Full Trace Events . | . . . . . Feedback Events . | . . . . . Feedback Blocked . | . . . . . Robot Schematics Acquired . | . . . . . Robots Built . | . . . . . Authchips . | . . . . . Time . | . . . . . Total Robot Build Rating . | . . . . . Part Schematics Acquired . | . . . . . Parts Built . | . . . . . Authchips . | . . . . . Time . | . . . . . Total Part Build Rating . | . . . . . Part Studies Acquired . | . . . . . Parts Repaired 1 | . . . . 1 Time 38 | . . . . 38 Parts Recycled 1 | . . 1 . . Recycled Matter . | . . . . . Retrieved Matter . | . . . . . Retrieved Components . | . . . . . Parts Scanalyzed . | . . . . . Part Schematics Acquired . | . . . . . Parts Damaged . | . . . . . Bothacking | -11 -10 -9 -8 -8 ------------ Run | Yrd Mat Mat Mat Sto Used RIF Installer . | . . . . . Robots Hacked . | . . . . . Non-combat . | . . . . . Combat . | . . . . . Robot Hacks Applied . | . . . . . Relay Couplers Released . | . . . . . Fabnet Peak Effective % . | . . . . . Robots Rewired . | . . . . . Allies Hacked . | . . . . . Hacks Repelled . | . . . . . Allies | -11 -10 -9 -8 -8 -------- Run | Yrd Mat Mat Mat Sto Total Allies . | . . . . . Largest Group . | . . . . . Highest-Rated Group . | . . . . . Highest-Rated Ally . | . . . . . Total Orders . | . . . . . Ally Attacks . | . . . . . Total Damage . | . . . . . Kills . | . . . . . Allies Corrupted . | . . . . . Allies Melted . | . . . . . Intel | -11 -10 -9 -8 -8 ------- Run | Yrd Mat Mat Mat Sto Active Infowar (turns) 941 | 31 386 524 . . Seismic 941 | 31 386 524 . . Robot Analysis Total . | . . . . . Derelict Logs Recovered . | . . . . . Drone Launches 2 | . . . . 2 Drone Recoveries 2 | . . . . 2 Exploration | -11 -10 -9 -8 -8 ------------- Run | Yrd Mat Mat Mat Sto Turns Passed 2128 | 113 386 691 41 897 Spaces Moved 895 | 49 206 204 24 412 Core 58 | 1 . . . 57 Treads 837 | 48 206 204 24 355 Legs . | . . . . . Wheels . | . . . . . Hover . | . . . . . Flight . | . . . . . Fastest Speed 50 | 50 160 160 160 100 Average Speed 157 | 157 160 160 160 155 Slowest Speed 240 | 160 160 160 160 240 Overloaded Moves . | . . . . . Propulsion Burnouts . | . . . . . Robots Hopped . | . . . . . Potential Cave-ins . | . . . . . Cave-ins Triggered . | . . . . . Exploration Rate (%) 25 | 4 31 29 3 60 Regions Visited 4 Branch Regions 1 Pre-discovered Areas . | . . . . . Known Exits Taken . | . . . . . Unknown Exits Taken 4 | 1 1 1 1 . Scrap Searched . | . . . . . Spaces Dug . | . . . . . Terrain Destroyed 162 | . . 41 . 121 Melee . | . . . . . Projectile . | . . . . . AOE 162 | . . 41 . 121 Terrain Rammed . | . . . . . Walls Destroyed . | . . . . . Machines Disabled . | . . . . . Actions | -11 -10 -9 -8 -8 --------- Run | Yrd Mat Mat Mat Sto Total 1422 | 71 245 528 26 552 Wait 353 | 6 25 278 . 44 Move 891 | 48 205 203 23 412 Hop . | . . . . . Pick Up 13 | 5 1 5 1 1 Fast Attach 24 | 7 . 4 1 12 Attach 4 | . . 1 1 2 Detach . | . . . . . Swap 15 | . 2 9 . 4 Drop 9 | . . 5 . 4 Fire 109 | 5 8 23 . 73 Melee . | . . . . . Ram . | . . . . . Kick . | . . . . . Crush 4 | . 4 . . . Escape Stasis . | . . . . . Rewire . | . . . . . Trap . | . . . . . Miscellaneous . | . . . . . Route ------- -11/Scrapyard -10/Materials -9/Materials -8/Materials -8/Storage History --------- Turn | Location | Event 14 | -11/Scrapyard | Discovered new exit (range 15) 114 | -11/Scrapyard | Entered Materials 311 | -10/Materials | Build established: Mutant 497 | -10/Materials | Discovered new exit (range 3) 500 | -10/Materials | Entered another Materials area 500 | -9/Materials | Evolved 2 slots: Propulsion x2 1165 | -9/Materials | Discovered new exit (range 11) 1191 | -9/Materials | Entered another Materials area 1191 | -8/Materials | Evolved 2 slots: Utility x1, Weapon x1 1191 | -8/Materials | Discovered new exit (range 7) 1232 | -8/Materials | Entered Storage 1369 | -8/Storage | Repaired Minigun 1590 | -8/Storage | Lost 5 parts (3n1u1w) 2100 | -8/Storage | Lost 7 parts (1p2n1u3w) 2115 | -8/Storage | Core integrity fell below 50% 2129 | -8/Storage | Self-destructed Last Messages --------------- U-05 Engineer lays Concrete. Rocket Launcher destroyed. U-05 Engineer lays Concrete. Acquired 84 matter. U-05 Engineer lays Concrete. Acquired Lgt. Treads. K-01 Serf collects debris. U-05 Engineer lays Concrete. K-01 Serf collects debris. U-05 Engineer lays Concrete. K-01 Serf collects debris. U-05 Engineer builds a Wall. K-01 Serf collects debris. U-05 Engineer builds a Wall. Lgt. Treads destroyed. Connecting with Door Terminal... >>Open(Door) Sealed Heavy Doors opened. Acquired Arm. Treads. Arm. Treads destroyed. Map ----- +----------------------------------------------------+ | ??????????????????????????????????? | | ??????????????????????????????????? | | ??????????????????????????????????? | | ??????????????????????????????????? | | ??????????????????????????????????? | | #?????????????????????????????????? | | ##?????????????????????########???? | | #?????????????????????# ##??? | | ########### ??????????# "#??? | | [ / "?????????# " " T#??? | | # #??????????## "R" "#??? | | #??????????# """ #???? | | # """ """ ###########?# #???? | | # """ """??# ###+##+###???? | | /?""" "????# / #????? | | # ? ?????# ### #????? | | ######+##??# #?# #????? | | #########+####?# ##????? | | #?# #?????? | | T #?# #?????? | | ^ #?# ###???? | | ############# #?# #T###?? | | #??????????# ## " =#?? | | +??????????# #####?? | | #??????????# ##Y##/##????? | | #??????????## ## @gg #????? | | +####+##???????????#??#t ! #????? | | ????????????????????# #????? | | ????????????????????# ! #????? | | ????????????????????# #????? | | ????????????????????# #????? | | ???????????????????########????? | | ##????????????????????????????????? | | | | | | | | | | | | | | | | | | | | | | | | | | | | | | | | | | | +----------------------------------------------------+ Best States ------------- Heat Dissipation 31 Energy Generation 12 Energy Capacity 265 Matter Stores 300 Matter Capacity 300 Sight Range 16 Terrain Scan Density 10 Armor Coverage 150 Evasion (%) 40 Recoil Reduction 12 Item Schematics ----------------- None Robot Schematics ------------------ None Fabricated ------------ Nothing Repaired ---------- Minigun | 38% | -8/Storage Studied --------- None Alien Tech Used ----------------- None Achievements -------------- Resistances Are Futile Challenges ------------ None Game ------ Seed StructuralGaussParser Manual? 0 Play Time 00:27:27 Cumulative 40.8 hours Start 2025.10.27 @ 02:11:25 End 2025.10.27 @ 02:34:46 Sessions 1 Manual Loads 0 Difficulty Rogue Special Mode None Game No. 75 Rogue 72 Adventurer 0 Explorer 3 Win Type - Total 1 Types 1/0/0/0/0/0/0/0/0/0 Lore% 37 Gallery% 30 Achievement% 20 Wizard Run 0 Options --------- Layout 1 ASCII 0 Keyboard 1 Movement Numpad Keybinds 0 Fullscreen 1 Font 24/Smallcaps Map View 50x35 Zoom Use 0% Tactical HUD 0 Map Filters NONE Filters NONE Steam 1 RUN: 41676440-aea4-4984-83a3-02c949af46a6